Cogmind - Beta 13 @@@ ROGUE MODE // 2024.03.31 @ 17:06:38 Player: Bobby43rocks Result: Self-destructed Performance ------------- Evolutions (1) 500 Regions Visited (2) 400 Robots Destroyed (12) 60 Value Destroyed (215) 215 Prototype IDs (0) 0 Alien Tech Used (0) 0 Bonus (0) 0 TOTAL SCORE: 1175 Bonus ------- None Cogmind --------- Core Integrity 290/400 Matter 413/500 Energy 100/100 System Corruption 0% Temperature Cool (9) Movement Walking (120) Location -9/Materials Parts ------- > --- POWER (1) -------- (None) > --- PROPULSION (3) --- Aluminum Leg > --- UTILITY (2) ------ High-capacity Matter Pod Signal Interpreter > --- WEAPON (3) ------- (None) > --- INVENTORY (5) ---- Cooling System Medium Storage Unit Structural Scanner Signal Interpreter Terrain Scan Processor Peak State ------------ > --- POWER ------------ Light Ion Engine > --- PROPULSION ------- Wheel Wheel > --- UTILITY ---------- High-capacity Matter Pod Structural Scanner > --- WEAPON ----------- EM Pulse Gun Medium Laser > --- INVENTORY -------- Light Ion Engine Aluminum Leg Aluminum Leg Large Matter Pod Assault Rifle [Rating: 7] Favorites ----------- Power Light Ion Engine Engine Light Ion Engine Propulsion Wheel Leg Aluminum Leg Wheel Wheel Hover Unit Hover Unit Flight Unit Flight Unit Utility High-capacity Matter Pod Device Structural Scanner Storage High-capacity Matter Pod Processor Signal Interpreter Weapon Assault Rifle Energy Gun EM Pulse Gun Ballistic Gun Assault Rifle Build | -11 -10 -9 ------- Run | Yrd Mat Mat Slots Evolved 2 | . . 2 Power . | . . . Propulsion 1 | . . 1 Utility . | . . . Weapon 1 | . . 1 Parts Attached 19 | 6 11 2 Power 3 | 1 1 1 Engine 3 | 1 1 1 Core . | . . . Reactor . | . . . Propulsion 7 | 3 3 1 Treads . | . . . Leg 3 | 1 2 . Wheel 2 | 2 . . Hover 1 | . 1 . Flight 1 | . . 1 Utility 4 | . 4 . Device 1 | . 1 . Storage 2 | . 2 . Processor 1 | . 1 . Hackware . | . . . Protection . | . . . Artifact . | . . . Weapon 5 | 2 3 . Energy Gun 3 | 1 2 . Energy Cannon . | . . . Ballistic Gun 2 | 1 1 . Ballistic Cannon . | . . . Launcher . | . . . Special Weapon . | . . . Impact Weapon . | . . . Slashing Weapon . | . . . Piercing Weapon . | . . . Special Melee Weapon . | . . . Unidentified Prototypes . | . . . Parts Lost 9 | . 5 4 Power 2 | . 1 1 Propulsion 4 | . 2 2 Utility . | . . . Weapon 3 | . 2 1 Highest Loss Streak 5 | . 5 4 To Critical Strikes . | . . . Average Slot Usage (%) 79 | . 81 69 Engine 11 | . 11 11 Leg 11 | . 9 22 Wheel 11 | . 12 . Hover 1 | . 1 . Device 4 | . 5 . Storage 13 | . 13 11 Processor 5 | . 4 11 Energy Gun 9 | . 11 . Ballistic Gun 9 | . 9 11 Naked Turns . | . . . Heaviest Build 12 | 6 12 9 Greatest Support 20 | 20 20 20 Greatest Overweight (x) 2 | . 2 2 Average Overweight (x) . | . . . Largest Inventory Capacity 5 | 5 5 5 Average Capacity 5 | 5 5 5 Most Carried 5 | 5 5 5 Average Carried 3 | 2 3 4 Final Capacity 5 | 5 5 5 Final Carried 5 | 3 3 5 Class Distribution -------------------- 100% | Mutant Dominant Class ---------------- Mutant | -10/Materials Mutant | -9/Materials Resources | -11 -10 -9 ----------- Run | Yrd Mat Mat Matter Collected 508 | 266 168 74 Remotely . | . . . Salvage Created 265 | 50 168 47 Parts 23 | 1 13 9 Haulers Intercepted . | . . . Recyclers Shooed 1 | . 1 . Parts Field Recycled . | . . . Retrieved Matter . | . . . Parts Self-Destructed . | . . . Prevented . | . . . Kills | -11 -10 -9 ------- Run | Yrd Mat Mat Combat Hostiles Destroyed 12 | 1 8 3 Guns 10 | 1 6 3 AOE 2 | . 2 . Classes Destroyed 2 | 1 1 . Swarmer 9 | . 6 3 Grunt 3 | 1 2 . Best Kill Streak 3 | 1 3 2 Combat Bots Only 3 | 1 3 2 Max Kills in Single Turn 2 | 1 2 1 Gunslinging 1 | . 1 . Exploded 2 | . 2 . Melee . | . . . Uniques/NPCs Destroyed . | . . . Combat | -11 -10 -9 -------- Run | Yrd Mat Mat Hostile Shots Fired 112 | 2 50 60 Missed 30 | 1 11 18 Damage Taken 884 | 12 447 425 Core 266 | . 156 110 Absorbed by Shields . | . . . Core Remaining (%) 68 | 100 37 . Volleys Fired 44 | 2 28 14 Largest 2 | 2 2 1 Hottest 90 | 60 90 20 Shots Fired 52 | 4 34 14 Gun 52 | 4 34 14 Cannon . | . . . Launcher . | . . . Special . | . . . Kinetic 23 | 2 7 14 Thermal 19 | 2 17 . Explosive . | . . . Electromagnetic 10 | . 10 . Robot Hit Streak 5 | 2 5 3 Robot Miss Streak 4 | 1 4 4 Penetration Max . | . . . Secondary Targets 1 | . 1 . Max Gunslinging Chain 1 | . 1 . Shots Hit Robots 26 | 3 16 7 Core Hits 15 | 1 11 3 Critical Kills . | . . . Critical Parts Destroyed . | . . . Critical Strikes . | . . . Melee Attacks . | . . . Impact . | . . . Slashing . | . . . Piercing . | . . . Sneak Attacks . | . . . Combat Hostiles . | . . . Follow-up Attacks . | . . . Damage Inflicted 628 | 41 502 85 Guns 318 | 41 192 85 Cannons . | . . . Explosions 287 | . 287 . Melee . | . . . Ramming 23 | . 23 . Kinetic 148 | 29 34 85 Thermal 422 | 12 410 . Explosive . | . . . Electromagnetic 35 | . 35 . Impact . | . . . Slashing . | . . . Piercing . | . . . Highest Corruption . | . . . Average Corruption . | . . . Corruption Purged . | . . . Corruption Blocked . | . . . Overload Shots . | . . . Overflow Damage 106 | . 106 . Projectiles . | . . . Explosions 106 | . 106 . Melee . | . . . Knockbacks . | . . . Impact . | . . . Kinetic . | . . . Secondary . | . . . Self-Inflicted Damage 8 | . 8 . Shots . | . . . Rammed 4 | . 4 . Targets Rammed 5 | . 5 . Kicked 1 | . 1 . Crushed . | . . . Highest Temperature 321 | 6 321 . Average Temperature 145 | 6 155 . Received Heat Transfer 237 | 6 186 45 Siege Activations . | . . . Robots Corrupted . | . . . Combat Hostiles . | . . . Parts Fried . | . . . Impact Corruptions . | . . . Robots Melted . | . . . Combat Hostiles . | . . . Parts Melted 1 | . 1 . Heat Transferred 545 | 25 520 . Parts Sabotaged . | . . . Parts Stolen . | . . . Parts Stripped . | . . . Power Chain Reactions . | . . . Alert | -11 -10 -9 ------- Run | Yrd Mat Mat Peak Influence 201 | 20 201 60 Initial 13 | . 13 . Average 42 | 3 50 22 Maximum Alert Level 1 | . 1 . Low Security (%) 94 | 100 92 100 Level 1 5 | . 7 . Level 2 . | . . . Level 3 . | . . . Level 4 . | . . . Level 5 . | . . . High Security . | . . . Max Security . | . . . Squads Dispatched . | . . . Investigation . | . . . Extermination . | . . . Reinforcement . | . . . Assault . | . . . Garrison . | . . . Intercept . | . . . Searches Triggered . | . . . Construction Impeded . | . . . Haulers Reinforced . | . . . Active Scanning Responses . | . . . Cargo Convoy Interrupts . | . . . Stealth | -11 -10 -9 --------- Run | Yrd Mat Mat Distress Signals 2 | . . 2 Communications Jammed . | . . . Distress Signals . | . . . Times Spotted 26 | 1 14 11 Peak Tracking Total 9 | 1 4 9 Tactical Retreats . | . . . Traps | -11 -10 -9 ------- Run | Yrd Mat Mat Traps Triggered . | . . . Indirectly . | . . . Trap Hack Attempts . | . . . Triggered . | . . . Disarmed . | . . . Reprogrammed . | . . . Reused . | . . . Traps Extracted . | . . . Installed . | . . . Triggered . | . . . Machines | -11 -10 -9 ---------- Run | Yrd Mat Mat Machines Disabled 1 | . 1 . Max in Single Turn 1 | . 1 . Machines Repaired . | . . . Machines Dismantled . | . . . Machines Sabotaged . | . . . Overloaded Fab Kills . | . . . Hacking | -11 -10 -9 --------- Run | Yrd Mat Mat Machines Accessed 7 | . 7 . Terminals 4 | . 4 . Fabricators . | . . . Repair Stations 1 | . 1 . Recycling Units 2 | . 2 . Scanalyzers . | . . . Garrison Access . | . . . Total Hacks 13 | . 13 . Successful 8 | . 8 . Failed 5 | . 5 . Catastrophic . | . . . Database Lockouts . | . . . Manual . | . . . Terminals 8 | . 8 . Fabricators . | . . . Repair Stations 1 | . 1 . Recycling Units 4 | . 4 . Scanalyzers . | . . . Garrison Access . | . . . Terminal Hacks 5 | . 5 . Record 1 | . 1 . Alert Level 2 | . 2 . Unreport Threat 1 | . 1 . Locate Traps 1 | . 1 . Fabricator Hacks . | . . . Repair Station Hacks . | . . . Recycling Unit Hacks 3 | . 3 . Recycle Component 2 | . 2 . Process 1 | . 1 . Scanalyzer . | . . . Garrison Access Hacks . | . . . Unauthorized Hacks . | . . . Terminals . | . . . Fabricators . | . . . Repair Stations . | . . . Recycling Units . | . . . Scanalyzers . | . . . Garrison Access . | . . . Data Cores Recovered . | . . . Used . | . . . Hacking Detections 1 | . 1 . Full Trace Events . | . . . Feedback Events . | . . . Feedback Blocked . | . . . Robot Schematics Acquired . | . . . Robots Built . | . . . Authchips . | . . . Time . | . . . Total Robot Build Rating . | . . . Part Schematics Acquired . | . . . Parts Built . | . . . Authchips . | . . . Time . | . . . Total Part Build Rating . | . . . Parts Repaired . | . . . Time . | . . . Parts Recycled 2 | . 2 . Recycled Matter 119 | . 119 . Retrieved Matter . | . . . Retrieved Components . | . . . Parts Scanalyzed . | . . . Part Schematics Acquired . | . . . Parts Damaged . | . . . Bothacking | -11 -10 -9 ------------ Run | Yrd Mat Mat Used RIF Installer . | . . . Robots Hacked . | . . . Non-combat . | . . . Combat . | . . . Robot Hacks Applied . | . . . Relay Couplers Released . | . . . Fabnet Peak Effective % . | . . . Robots Rewired . | . . . Allies Hacked . | . . . Hacks Repelled . | . . . Allies | -11 -10 -9 -------- Run | Yrd Mat Mat Total Allies . | . . . Largest Group . | . . . Highest-Rated Group . | . . . Highest-Rated Ally . | . . . Total Orders . | . . . Ally Attacks . | . . . Total Damage . | . . . Kills . | . . . Allies Corrupted . | . . . Allies Melted . | . . . Intel | -11 -10 -9 ------- Run | Yrd Mat Mat Robot Analysis Total . | . . . Derelict Logs Recovered . | . . . Drone Launches . | . . . Drone Recoveries . | . . . Exploration | -11 -10 -9 ------------- Run | Yrd Mat Mat Turns Passed 1145 | 125 885 135 Spaces Moved 981 | 133 766 82 Core 108 | 33 75 . Treads . | . . . Legs 327 | . 248 79 Wheels 482 | 100 382 . Hover 61 | . 61 . Flight 3 | . . 3 Fastest Speed 50 | 50 80 120 Average Speed 100 | 72 103 123 Slowest Speed 220 | 80 150 220 Overloaded Moves . | . . . Propulsion Burnouts . | . . . Robots Hopped . | . . . Cave-ins Triggered . | . . . Exploration Rate (%) 25 | 5 64 8 Regions Visited 2 Branch Regions . Pre-discovered Areas . | . . . Known Exits Taken 1 | . 1 . Unknown Exits Taken 1 | 1 . . Scrap Searched . | . . . Spaces Dug . | . . . Terrain Destroyed 17 | . 17 . Melee . | . . . Projectile . | . . . AOE 17 | . 17 . Terrain Rammed . | . . . Walls Destroyed . | . . . Machines Disabled . | . . . Actions | -11 -10 -9 --------- Run | Yrd Mat Mat Total 1086 | 159 826 101 Wait 4 | 4 . . Move 979 | 132 765 82 Hop . | . . . Pick Up 24 | 11 11 2 Fast Attach 3 | . 2 1 Attach 13 | 6 7 . Detach 2 | 1 1 . Swap 3 | . 2 1 Drop 9 | 3 5 1 Fire 44 | 2 28 14 Melee . | . . . Ram 4 | . 4 . Kick 1 | . 1 . Crush . | . . . Escape Stasis . | . . . Rewire . | . . . Trap . | . . . Miscellaneous . | . . . Route ------- -11/Scrapyard -10/Materials (discovered 2 exits: *Mat / *Min) -9/Materials History --------- Turn | Location | Event 2 | -11/Scrapyard | Met Revision 17 96 | -11/Scrapyard | Discovered new exit (range 8) 126 | -11/Scrapyard | Entered Materials 315 | -10/Materials | Discovered new exit (range 14) 323 | -10/Materials | Build established: Mutant 517 | -10/Materials | Discovered new exit (range 9) 575 | -10/Materials | Core integrity fell below 50% 613 | -10/Materials | Lost 5 parts (1p2n2w) 775 | -10/Materials | Identified exit to Materials 878 | -10/Materials | Identified exit to Mines 1011 | -10/Materials | Entered another Materials area 1011 | -9/Materials | Evolved 2 slots: Propulsion x1, Weapon x1 1146 | -9/Materials | Self-destructed Last Messages --------------- R-06 Scavenger collects Lgt. Assault Rifle. Dropped Lgt. Ion Engine. Acquired 20 matter. R-06 Scavenger collects Lgt. Assault Rifle. Acquired 17 matter. R-06 Scavenger collects Flight Unit. Acquired 19 matter. R-06 Scavenger collects Lgt. Ion Engine. Acquired Flight Unit. K-01 Serf collects debris. Acquired 18 matter. K-01 Serf collects debris. S-10 Pest destroyed. K-01 Serf collects debris. W-16 Scout sends out distress signal. Lgt. Ion Engine destroyed. Flight Unit destroyed. K-01 Serf collects debris. Aluminum Leg destroyed. Assault Rifle destroyed. Map ----- +----------------------------------------------------+ | ?????????????????????????????????????????????????? | | ?????????????????????????????????????????????????? | | ?????????????????????????????????????????????????? | | ?????????????????????????????????????????????????? | | ?????????????????????????????????????????????????? | | ?????????????????????????????????????????????????? | | ?????????????????????????????????????????????????? | | ?????????????????????????????????????????????????? | | ????????????????????????????????? ???????????????? | | ????????????????????????????????" ???????????????? | | ????????????????????????????????" ???????????????? | | ???????????????????????????????? ???????????????? | | ??????????????????????#/########/##??????????????? | | ?????????????????????? ?/ #??????????????? | | ??????????????????????""" ?# #??????????????? | | ???????????????????????"" ??# #??????????????? | | ???????????????????????"" ??# #??????#???????? | | ???????????????????????? ???# #????? #???????? | | ???????????????????????? ???# #??? ?????????? | | ???????????#######+######Y##### ###+######+##??? | | ?????????? s%* ^ ?? | | ?????????? [ = ?? | | ?????????? ?? | | ???????????# ###########s s###+######+########???? | | ???????????????????????# # #????????????? | | ???????????????????????#w@ # """#????????????? | | ?????????????########### # """#????????????? | | ?????????????# """ # # """#????????????? | | ?????????????# """"" # # """#????????????? | | ?????????????# """"" # # """#????????????? | | ?????????????# """"" + # #????????????? | | ?????????????# """ # # #????????????? | | ?????????????# # # #????????????? | | ?????????????# # ##########????????????? | | ?????????????# # #?????????????????????? | | ?????????????########### #?????????????????????? | | ???????????????????????# #?????????????????????? | | ???????????????????????# #?????????????????????? | | ???????????????????????# #?????????????????????? | | ???????????????????????# #?????????????????????? | | ???????????????????????# #?????????????????????? | | ???????????????????????#####?????????????????????? | | ?????????????????????????????????????????????????? | | ?????????????????????????????????????????????????? | | ?????????????????????????????????????????????????? | | ?????????????????????????????????????????????????? | | ?????????????????????????????????????????????????? | | ?????????????????????????????????????????????????? | | ?????????????????????????????????????????????????? | | ?????????????????????????????????????????????????? | +----------------------------------------------------+ Best States ------------- Heat Dissipation 28 Energy Generation 10 Energy Capacity 125 Matter Stores 420 Matter Capacity 500 Sight Range 16 Terrain Scan Density 10 Evasion (%) 55 Item Schematics ----------------- None Robot Schematics ------------------ None Fabricated ------------ Nothing Alien Tech Used ----------------- None Achievements -------------- Everything Is Under Control Challenges ------------ None Game ------ Seed OpticalWardroneExtractor Manual? 0 Play Time 00:19:30 Cumulative 1.1 hours Start 2024.03.31 @ 16:46:09 End 2024.03.31 @ 17:06:38 Sessions 1 Manual Loads 0 Difficulty Rogue Special Mode None Game No. 3 Rogue 3 Adventurer 0 Explorer 0 Win Type - Total 0 Types 0/0/0/0/0/0/0/0/0 Lore% 0 Gallery% 3 Achievement% 1 Wizard Run 0 Options --------- Layout 1 ASCII 0 Keyboard 1 Movement Arrows Keybinds 0 Fullscreen 2 Font 24/Smallcaps Map View 50x35 Zoom Use 0% Tactical HUD 0 Map Filters NONE Filters NONE Steam 1 RUN: 3696e0a2-f42e-4d6a-bb35-05b085d67d98